[Event "*** Titled Tuesday 3|2 Blitz"]
[Site "Chess.com"]
[Date "2015.06.02"]
[Round "4"]
[White "MrHenriksson"]
[Black "GregShahade"]
[Result "1/2-1/2"]
[WhiteElo "2064"]
[BlackElo "2329"]
[TimeControl "180+2"]
[EndTime "11:48:17 PDT"]
[Termination "Game drawn - insufficient material"]

1. d4 {[%clk 0:03:01.9]} 1... Nf6 {[%clk 0:02:59.8]} 2. g3 {[%clk 0:03:01.8]}
2... c5 {[%clk 0:02:59.6]} 3. dxc5 {[%clk 0:03:00]} 3... e6 {[%clk 0:03:00.5]}
4. Be3 {[%clk 0:03:00]} 4... Na6 {[%clk 0:02:58.8]} 5. Bg2 {[%clk 0:02:59.9]}
5... Bxc5 {[%clk 0:02:58.9]} 6. Bxc5 {[%clk 0:03:00]} 6... Nxc5 {[%clk
0:03:00.8]} 7. Qd6 {[%clk 0:02:58.7]} 7... Qe7 {[%clk 0:02:57.2]} 8. Qxe7+
{[%clk 0:02:55.6]} 8... Kxe7 {[%clk 0:02:57.9]} 9. Nc3 {[%clk 0:02:56]} 9... d5
{[%clk 0:02:58.2]} 10. Nf3 {[%clk 0:02:51.7]} 10... Bd7 {[%clk 0:02:58.1]} 11.
Nd2 {[%clk 0:02:51.7]} 11... Rac8 {[%clk 0:02:55.3]} 12. Nb3 {[%clk 0:02:49.3]}
12... Nxb3 {[%clk 0:02:37]} 13. axb3 {[%clk 0:02:49.1]} 13... d4 {[%clk
0:02:38.2]} 14. Nd1 {[%clk 0:02:31.3]} 14... a6 {[%clk 0:02:02.7]} 15. c3 {[%clk
0:02:31.2]} 15... dxc3 {[%clk 0:02:00.1]} 16. Nxc3 {[%clk 0:02:27.7]} 16... Bc6
{[%clk 0:02:00.4]} 17. O-O {[%clk 0:02:26.1]} 17... Rhd8 {[%clk 0:01:59.9]} 18.
Rfd1 {[%clk 0:02:26.5]} 18... Bxg2 {[%clk 0:01:59.9]} 19. Kxg2 {[%clk
0:02:27.3]} 19... Nd7 {[%clk 0:01:44.2]} 20. b4 {[%clk 0:02:05]} 20... Nb6
{[%clk 0:01:40.5]} 21. b5 {[%clk 0:02:01.6]} 21... Rxd1 {[%clk 0:01:31.7]} 22.
Rxd1 {[%clk 0:01:59.6]} 22... axb5 {[%clk 0:01:32.7]} 23. Nxb5 {[%clk 0:01:34]}
23... Rc2 {[%clk 0:01:33]} 24. Nd6 {[%clk 0:01:30.5]} 24... Rxb2 {[%clk
0:01:20.4]} 25. Nxb7 {[%clk 0:01:27.9]} 25... Rxe2 {[%clk 0:01:20.7]} 26. Kf3
{[%clk 0:01:17.8]} 26... Rb2 {[%clk 0:01:18.5]} 27. Nd6 {[%clk 0:01:13.9]} 27...
Nd5 {[%clk 0:01:16.3]} 28. Nf5+ {[%clk 0:01:13.5]} 28... Kf6 {[%clk 0:01:10]}
29. Ne3 {[%clk 0:01:07.8]} 29... Rb3 {[%clk 0:01:11.2]} 30. Rd4 {[%clk 0:01:04]}
30... g5 {[%clk 0:01:05.4]} 31. h4 {[%clk 0:00:57.6]} 31... h6 {[%clk
0:01:00.7]} 32. hxg5+ {[%clk 0:00:57.9]} 32... hxg5 {[%clk 0:01:01.8]} 33. Ke2
{[%clk 0:00:47.1]} 33... Rb2+ {[%clk 0:01:02.2]} 34. Kf3 {[%clk 0:00:47]} 34...
Rb3 {[%clk 0:01:03.2]} 35. Ke2 {[%clk 0:00:47.9]} 35... Nc3+ {[%clk 0:01:03.5]}
36. Kf3 {[%clk 0:00:46.3]} 36... Nb5 {[%clk 0:01:00.3]} 37. Rc4 {[%clk
0:00:42.5]} 37... Nd6 {[%clk 0:00:59.4]} 38. Rc5 {[%clk 0:00:38.2]} 38... Kg6
{[%clk 0:00:57.9]} 39. Kg2 {[%clk 0:00:38.1]} 39... Rb2 {[%clk 0:00:54.9]} 40.
Rc2 {[%clk 0:00:37.9]} 40... Rxc2 {[%clk 0:00:54.3]} 41. Nxc2 {[%clk 0:00:38.8]}
41... Kf5 {[%clk 0:00:55.4]} 42. Ne3+ {[%clk 0:00:39.6]} 42... Ke4 {[%clk
0:00:56.2]} 43. Ng4 {[%clk 0:00:40.4]} 43... f5 {[%clk 0:00:53.4]} 44. Nh6
{[%clk 0:00:35.3]} 44... g4 {[%clk 0:00:47.2]} 45. Ng8 {[%clk 0:00:34.4]} 45...
Ke5 {[%clk 0:00:45.1]} 46. Ne7 {[%clk 0:00:34.4]} 46... Ne4 {[%clk 0:00:46.2]}
47. Ng6+ {[%clk 0:00:34.1]} 47... Kd4 {[%clk 0:00:44.8]} 48. Nf4 {[%clk
0:00:33]} 48... Ng5 {[%clk 0:00:46]} 49. Ng6 {[%clk 0:00:31.2]} 49... Kd3 {[%clk
0:00:45.4]} 50. Ne5+ {[%clk 0:00:30.7]} 50... Ke2 {[%clk 0:00:45.2]} 51. Ng6
{[%clk 0:00:24.7]} 51... Ke1 {[%clk 0:00:42.4]} 52. Nf4 {[%clk 0:00:23.1]} 52...
Kd2 {[%clk 0:00:43.1]} 53. Ng6 {[%clk 0:00:19.7]} 53... Ke2 {[%clk 0:00:37.5]}
54. Nf4+ {[%clk 0:00:20.4]} 54... Ke1 {[%clk 0:00:38.8]} 55. Ng6 {[%clk
0:00:21.8]} 55... Nh3 {[%clk 0:00:39.1]} 56. f3 {[%clk 0:00:21.7]} 56... gxf3+
{[%clk 0:00:39.4]} 57. Kxf3 {[%clk 0:00:21.9]} 57... Kd2 {[%clk 0:00:36.6]} 58.
g4 {[%clk 0:00:22.4]} 58... Ng1+ {[%clk 0:00:20.7]} 59. Kg2 {[%clk 0:00:20.9]}
59... fxg4 {[%clk 0:00:21.4]} 60. Kxg1 {[%clk 0:00:21.3]} 60... Ke2 {[%clk
0:00:19]} 61. Kg2 {[%clk 0:00:22.3]} 61... e5 {[%clk 0:00:19.4]} 62. Nxe5 {[%clk
0:00:21.8]} 62... Ke3 {[%clk 0:00:18.2]} 63. Nxg4+ {[%clk 0:00:21.4]} 1/2-1/2

[Event "*** Titled Tuesday 3|2 Blitz"]
[Site "Chess.com"]
[Date "2015.06.02"]
[Round "4"]
[White "GMNeiksans"]
[Black "E-Shaposhnikov"]
[Result "1-0"]
[WhiteElo "2519"]
[BlackElo "2345"]
[TimeControl "180+2"]
[EndTime "11:49:12 PDT"]
[Termination "GMNeiksans won by resignation"]

1. Nf3 {[%clk 0:03:01.9]} 1... c5 {[%clk 0:03:00.2]} 2. g3 {[%clk 0:03:01.8]}
2... Nc6 {[%clk 0:03:01.4]} 3. Bg2 {[%clk 0:02:59.1]} 3... g6 {[%clk 0:03:02.5]}
4. d4 {[%clk 0:02:53.6]} 4... cxd4 {[%clk 0:03:02.8]} 5. Nxd4 {[%clk 0:02:54.9]}
5... Bg7 {[%clk 0:03:04.5]} 6. Nb3 {[%clk 0:02:55.8]} 6... Nf6 {[%clk
0:03:00.5]} 7. c4 {[%clk 0:02:54.9]} 7... a5 {[%clk 0:02:54.9]} 8. Nc3 {[%clk
0:02:51.5]} 8... a4 {[%clk 0:02:55.9]} 9. Nc5 {[%clk 0:02:43.1]} 9... a3 {[%clk
0:02:55.4]} 10. O-O {[%clk 0:02:44.1]} 10... axb2 {[%clk 0:02:54.5]} 11. Bxb2
{[%clk 0:02:45]} 11... O-O {[%clk 0:02:54.2]} 12. Rb1 {[%clk 0:02:20.7]} 12...
d6 {[%clk 0:02:45.8]} 13. Nd3 {[%clk 0:02:21.7]} 13... Na5 {[%clk 0:02:35.8]}
14. c5 {[%clk 0:02:15.4]} 14... d5 {[%clk 0:02:33.2]} 15. Ne5 {[%clk 0:01:45.6]}
15... Bf5 {[%clk 0:02:25.1]} 16. Rc1 {[%clk 0:01:42.8]} 16... e6 {[%clk
0:02:06.5]} 17. Nb5 {[%clk 0:01:43.4]} 17... Nc6 {[%clk 0:01:30.2]} 18. Qb3
{[%clk 0:01:42.1]} 18... Na5 {[%clk 0:01:26.1]} 19. Qe3 {[%clk 0:01:14.4]} 19...
Nc6 {[%clk 0:00:57.3]} 20. Qb3 {[%clk 0:00:39.8]} 20... Qa5 {[%clk 0:00:57.6]}
21. Nd6 {[%clk 0:00:37.7]} 21... Qxa2 {[%clk 0:00:56.9]} 22. Qxa2 {[%clk
0:00:38.6]} 22... Rxa2 {[%clk 0:00:57.2]} 23. Nxc6 {[%clk 0:00:38.3]} 23... bxc6
{[%clk 0:00:55.3]} 24. Bxf6 {[%clk 0:00:34.7]} 24... Bxf6 {[%clk 0:00:55.6]} 25.
Nxf5 {[%clk 0:00:36.1]} 25... gxf5 {[%clk 0:00:56]} 26. e3 {[%clk 0:00:37.5]}
26... Rb8 {[%clk 0:00:55.5]} 27. Rb1 {[%clk 0:00:37.1]} 27... Rxb1 {[%clk
0:00:55.5]} 28. Rxb1 {[%clk 0:00:38.3]} 28... Rc2 {[%clk 0:00:57.4]} 29. Rb7
{[%clk 0:00:30.8]} 29... Rxc5 {[%clk 0:00:57.6]} 30. Bf3 {[%clk 0:00:32.2]}
30... Rc1+ {[%clk 0:00:50.2]} 31. Kg2 {[%clk 0:00:33.2]} 31... Kf8 {[%clk
0:00:50.1]} 32. Bh5 {[%clk 0:00:33.6]} 32... Be7 {[%clk 0:00:51.3]} 33. Rb8+
{[%clk 0:00:30.6]} 33... Kg7 {[%clk 0:00:52.3]} 34. Re8 {[%clk 0:00:29.7]} 34...
Bf8 {[%clk 0:00:32.4]} 35. Rc8 {[%clk 0:00:30.5]} 35... Be7 {[%clk 0:00:29.9]}
36. Re8 {[%clk 0:00:31.6]} 36... Kf6 {[%clk 0:00:29.4]} 37. Rh8 {[%clk
0:00:32.2]} 37... e5 {[%clk 0:00:30.8]} 38. Rxh7 {[%clk 0:00:33.2]} 38... c5
{[%clk 0:00:30]} 39. Bxf7 {[%clk 0:00:33]} 39... d4 {[%clk 0:00:28.1]} 40. Bd5
{[%clk 0:00:32.1]} 40... Bd8 {[%clk 0:00:27.9]} 41. Rf7+ {[%clk 0:00:31.1]}
41... Kg6 {[%clk 0:00:28.7]} 42. Rd7 {[%clk 0:00:32.2]} 42... Bf6 {[%clk
0:00:26.5]} 43. h4 {[%clk 0:00:31.2]} 43... c4 {[%clk 0:00:26.3]} 44. Bf7+
{[%clk 0:00:30.9]} 44... Kh6 {[%clk 0:00:26.7]} 45. Be6 {[%clk 0:00:32.3]} 45...
f4 {[%clk 0:00:18.1]} 46. Bf5 {[%clk 0:00:32]} 46... Bg7 {[%clk 0:00:17.7]} 47.
g4 {[%clk 0:00:33.5]} 47... dxe3 {[%clk 0:00:15.6]} 48. fxe3 {[%clk 0:00:32.6]}
48... fxe3 {[%clk 0:00:16.2]} 49. Kf3 {[%clk 0:00:31.3]} 49... Rf1+ {[%clk
0:00:11.4]} 50. Kxe3 {[%clk 0:00:31.5]} 50... c3 {[%clk 0:00:11.8]} 51. Rc7
{[%clk 0:00:31.6]} 51... e4 {[%clk 0:00:12.8]} 52. Bxe4 {[%clk 0:00:30.2]} 52...
Re1+ {[%clk 0:00:12.5]} 53. Kf3 {[%clk 0:00:28.7]} 53... Rf1+ {[%clk 0:00:13.5]}
54. Ke3 {[%clk 0:00:29.4]} 54... Re1+ {[%clk 0:00:14.5]} 55. Kd3 {[%clk
0:00:30.9]} 55... Rd1+ {[%clk 0:00:15.6]} 56. Kc2 {[%clk 0:00:32]} 56... Rd2+
{[%clk 0:00:16.8]} 57. Kb3 {[%clk 0:00:33.5]} 57... Rb2+ {[%clk 0:00:17.5]} 58.
Ka4 {[%clk 0:00:35]} 58... Ra2+ {[%clk 0:00:17]} 59. Kb5 {[%clk 0:00:35.8]}
59... Rb2+ {[%clk 0:00:18]} 60. Ka6 {[%clk 0:00:36.4]} 60... Ra2+ {[%clk
0:00:19]} 61. Kb7 {[%clk 0:00:36.6]} 61... Rb2+ {[%clk 0:00:19.4]} 62. Kc8
{[%clk 0:00:38]} 62... Rh2 {[%clk 0:00:16.3]} 63. Rc6+ {[%clk 0:00:33.4]} 63...
Bf6 {[%clk 0:00:16]} 64. Rxf6+ {[%clk 0:00:32.1]} 64... Kg7 {[%clk 0:00:17.2]}
65. Rg6+ {[%clk 0:00:33.4]} 65... Kf7 {[%clk 0:00:18.4]} 66. Rc6 {[%clk
0:00:33.7]} 66... Rxh4 {[%clk 0:00:19.2]} 67. Bf5 {[%clk 0:00:35]} 67... Rh3
{[%clk 0:00:18.5]} 68. Kc7 {[%clk 0:00:36.2]} 68... Re3 {[%clk 0:00:18]} 69. Kb6
{[%clk 0:00:36.3]} 69... Ke7 {[%clk 0:00:13.8]} 70. Kb5 {[%clk 0:00:37.3]} 70...
Kf7 {[%clk 0:00:13.1]} 71. Kb4 {[%clk 0:00:38.3]} 71... Rf3 {[%clk 0:00:14.8]}
72. Rxc3 {[%clk 0:00:39.1]} 72... Rf1 {[%clk 0:00:15.5]} 73. Rc6 {[%clk
0:00:39.8]} 73... Rd1 {[%clk 0:00:14.3]} 74. Kc5 {[%clk 0:00:40.5]} 74... Rd2
{[%clk 0:00:15.7]} 75. Rd6 {[%clk 0:00:41.4]} 75... Re2 {[%clk 0:00:15.4]} 76.
Kd5 {[%clk 0:00:42.5]} 76... Ke7 {[%clk 0:00:16.1]} 77. Re6+ {[%clk 0:00:43.4]}
1-0

[Event "*** Titled Tuesday 3|2 Blitz"]
[Site "Chess.com"]
[Date "2015.06.02"]
[Round "4"]
[White "IMRosen"]
[Black "Aragon"]
[Result "1-0"]
[WhiteElo "2263"]
[BlackElo "2110"]
[TimeControl "180+2"]
[EndTime "11:50:02 PDT"]
[Termination "IMRosen won by checkmate"]

1. e4 {[%clk 0:03:01.9]} 1... d5 {[%clk 0:03:00]} 2. exd5 {[%clk 0:03:01.7]}
2... Qxd5 {[%clk 0:03:00.1]} 3. Nc3 {[%clk 0:03:02.7]} 3... Qd6 {[%clk
0:03:01.2]} 4. d4 {[%clk 0:03:03.4]} 4... Nf6 {[%clk 0:03:02.3]} 5. g3 {[%clk
0:03:04.9]} 5... c6 {[%clk 0:03:03]} 6. Bf4 {[%clk 0:02:52.2]} 6... Qd8 {[%clk
0:02:56.7]} 7. Bg2 {[%clk 0:02:27.5]} 7... Bf5 {[%clk 0:02:54.6]} 8. Nf3 {[%clk
0:02:19.4]} 8... e6 {[%clk 0:02:54.6]} 9. O-O {[%clk 0:02:20.3]} 9... Nbd7
{[%clk 0:02:54.6]} 10. Qe2 {[%clk 0:02:12.1]} 10... Be7 {[%clk 0:02:52.6]} 11.
Rad1 {[%clk 0:02:12.5]} 11... Nd5 {[%clk 0:02:45.9]} 12. Bd2 {[%clk 0:02:11.1]}
12... O-O {[%clk 0:02:43.6]} 13. Rfe1 {[%clk 0:02:09.9]} 13... Bxc2 {[%clk
0:02:38.1]} 14. Rc1 {[%clk 0:02:07.3]} 14... Bg6 {[%clk 0:02:37.2]} 15. Ne5
{[%clk 0:02:00.1]} 15... Nxe5 {[%clk 0:02:34.3]} 16. dxe5 {[%clk 0:02:02]} 16...
Nb4 {[%clk 0:02:32.7]} 17. Red1 {[%clk 0:02:01.2]} 17... Nd3 {[%clk 0:02:29.9]}
18. Rb1 {[%clk 0:01:41.4]} 18... Qa5 {[%clk 0:02:22.6]} 19. Nd5 {[%clk
0:01:37.3]} 19... Qd8 {[%clk 0:02:05.7]} 20. Ba5 {[%clk 0:01:29.6]} 20... b6
{[%clk 0:01:56.7]} 21. Nxe7+ {[%clk 0:01:17.5]} 21... Qxe7 {[%clk 0:01:55.9]}
22. Bc3 {[%clk 0:01:12.7]} 22... Nc5 {[%clk 0:01:44.1]} 23. Rbc1 {[%clk
0:01:10.8]} 23... Rac8 {[%clk 0:01:39.5]} 24. Bb4 {[%clk 0:01:10.7]} 24... Rfd8
{[%clk 0:01:31.2]} 25. h4 {[%clk 0:00:58.9]} 25... Rxd1+ {[%clk 0:01:21]} 26.
Rxd1 {[%clk 0:00:57.1]} 26... h6 {[%clk 0:01:06.8]} 27. Qe3 {[%clk 0:00:40.4]}
27... Kh7 {[%clk 0:00:46.3]} 28. Rc1 {[%clk 0:00:38.2]} 28... Rd8 {[%clk
0:00:46.5]} 29. Bxc5 {[%clk 0:00:37.9]} 29... bxc5 {[%clk 0:00:47.4]} 30. Rxc5
{[%clk 0:00:34.7]} 30... Rd1+ {[%clk 0:00:45.6]} 31. Kh2 {[%clk 0:00:35.8]}
31... Qd7 {[%clk 0:00:38.1]} 32. Rxc6 {[%clk 0:00:31.5]} 32... Qd2 {[%clk
0:00:38.3]} 33. Qxd2 {[%clk 0:00:08.3]} 33... Rxd2 {[%clk 0:00:40.2]} 34. Ra6
{[%clk 0:00:09.8]} 34... Rxb2 {[%clk 0:00:39.2]} 35. Rxa7 {[%clk 0:00:11]} 35...
Rxf2 {[%clk 0:00:40.1]} 36. Kg1 {[%clk 0:00:12.7]} 36... Re2 {[%clk 0:00:41]}
37. Ra5 {[%clk 0:00:14.3]} 37... Rb2 {[%clk 0:00:37.5]} 38. a3 {[%clk
0:00:13.6]} 38... Rb1+ {[%clk 0:00:37.5]} 39. Kf2 {[%clk 0:00:14.2]} 39... Rb2+
{[%clk 0:00:38.7]} 40. Kf1 {[%clk 0:00:15.6]} 40... Bd3+ {[%clk 0:00:37.8]} 41.
Kg1 {[%clk 0:00:16.4]} 41... Re2 {[%clk 0:00:33.9]} 42. Bf3 {[%clk 0:00:16.9]}
42... Re1+ {[%clk 0:00:32.5]} 43. Kf2 {[%clk 0:00:18.4]} 43... Ra1 {[%clk
0:00:31.5]} 44. Ra7 {[%clk 0:00:18.5]} 44... Bc4 {[%clk 0:00:21.8]} 45. Be4+
{[%clk 0:00:17.7]} 45... g6 {[%clk 0:00:19]} 46. Rxf7+ {[%clk 0:00:19]} 46...
Kg8 {[%clk 0:00:20.2]} 47. Ra7 {[%clk 0:00:20.2]} 47... g5 {[%clk 0:00:18.3]}
48. hxg5 {[%clk 0:00:18.2]} 48... hxg5 {[%clk 0:00:19.1]} 49. Kf3 {[%clk
0:00:19.5]} 49... Re1 {[%clk 0:00:18.2]} 50. Ra5 {[%clk 0:00:09.6]} 50... Kf8
{[%clk 0:00:17.1]} 51. Bg6 {[%clk 0:00:06.5]} 51... Bd5+ {[%clk 0:00:14.6]} 52.
Kf2 {[%clk 0:00:08.1]} 52... Rxe5 {[%clk 0:00:15.4]} 53. Ra7 {[%clk 0:00:07.6]}
53... Kg8 {[%clk 0:00:11.2]} 54. a4 {[%clk 0:00:07.3]} 54... Bb3 {[%clk
0:00:11.2]} 55. a5 {[%clk 0:00:08.2]} 55... Rd5 {[%clk 0:00:10.7]} 56. Ke3
{[%clk 0:00:07.5]} 56... Rd1 {[%clk 0:00:10.3]} 57. Bd3 {[%clk 0:00:04.3]} 57...
Ra1 {[%clk 0:00:09.4]} 58. a6 {[%clk 0:00:05.3]} 58... Ra3 {[%clk 0:00:08.9]}
59. Kd2 {[%clk 0:00:06.6]} 59... Bd5 {[%clk 0:00:09.2]} 60. Rc7 {[%clk
0:00:05.8]} 60... g4 {[%clk 0:00:09.3]} 61. a7 {[%clk 0:00:07.3]} 61... Kf8
{[%clk 0:00:09]} 62. Ke3 {[%clk 0:00:07.7]} 62... Ke8 {[%clk 0:00:10.1]} 63. Kd4
{[%clk 0:00:09.1]} 63... Kd8 {[%clk 0:00:11.1]} 64. Rg7 {[%clk 0:00:10.3]} 64...
Kc8 {[%clk 0:00:12.1]} 65. Be2 {[%clk 0:00:04.4]} 65... Ra2 {[%clk 0:00:10.9]}
66. Bxg4 {[%clk 0:00:04.8]} 66... Ra4+ {[%clk 0:00:11.7]} 67. Kc5 {[%clk
0:00:05.5]} 67... Ra1 {[%clk 0:00:11.6]} 68. Kd6 {[%clk 0:00:06.5]} 68... Ra6+
{[%clk 0:00:11.7]} 69. Ke5 {[%clk 0:00:06.6]} 69... Ra3 {[%clk 0:00:12.7]} 70.
Bxe6+ {[%clk 0:00:07.6]} 70... Bxe6 {[%clk 0:00:13.1]} 71. Kxe6 {[%clk
0:00:09.5]} 71... Re3+ {[%clk 0:00:13]} 72. Kf5 {[%clk 0:00:09.6]} 72... Rf3+
{[%clk 0:00:13.8]} 73. Ke4 {[%clk 0:00:11]} 73... Ra3 {[%clk 0:00:14.8]} 74. g4
{[%clk 0:00:10.7]} 74... Ra5 {[%clk 0:00:15.2]} 75. Kf4 {[%clk 0:00:11.7]} 75...
Ra4+ {[%clk 0:00:16.3]} 76. Kg3 {[%clk 0:00:12.9]} 76... Ra1 {[%clk 0:00:17.1]}
77. Kh4 {[%clk 0:00:14.1]} 77... Rh1+ {[%clk 0:00:18]} 78. Kg5 {[%clk
0:00:15.7]} 78... Ra1 {[%clk 0:00:19.8]} 79. Kh5 {[%clk 0:00:16.2]} 79... Ra5+
{[%clk 0:00:20.3]} 80. g5 {[%clk 0:00:16.8]} 80... Ra1 {[%clk 0:00:22.2]} 81.
Kg6 {[%clk 0:00:17.7]} 81... Ra6+ {[%clk 0:00:22.1]} 82. Kh7 {[%clk 0:00:18.4]}
82... Ra1 {[%clk 0:00:22.4]} 83. g6 {[%clk 0:00:19.8]} 83... Rh1+ {[%clk
0:00:20.1]} 84. Kg8 {[%clk 0:00:21.4]} 84... Rf1 {[%clk 0:00:20.4]} 85. a8=Q#
{[%clk 0:00:21.9]} 1-0

[Event "*** Titled Tuesday 3|2 Blitz"]
[Site "Chess.com"]
[Date "2015.06.02"]
[Round "5"]
[White "9ShMat2"]
[Black "Genghis_K"]
[Result "1/2-1/2"]
[WhiteElo "2505"]
[BlackElo "2558"]
[TimeControl "180+2"]
[EndTime "11:54:45 PDT"]
[Termination "Game drawn by agreement"]

1. e4 {[%clk 0:03:01.9]} 1... c5 {[%clk 0:02:57.5]} 2. c3 {[%clk 0:03:02.1]}
2... Nf6 {[%clk 0:02:58]} 3. e5 {[%clk 0:03:03.4]} 3... Nd5 {[%clk 0:02:59.1]}
4. d4 {[%clk 0:03:05.3]} 4... cxd4 {[%clk 0:03:00.1]} 5. Nf3 {[%clk 0:03:06.4]}
5... d6 {[%clk 0:03:01.4]} 6. cxd4 {[%clk 0:03:06.7]} 6... Nc6 {[%clk
0:03:02.4]} 7. Bc4 {[%clk 0:03:07.4]} 7... Nb6 {[%clk 0:03:02.1]} 8. Bb5 {[%clk
0:03:07.9]} 8... Bd7 {[%clk 0:02:59.9]} 9. Nc3 {[%clk 0:03:08]} 9... e6 {[%clk
0:02:58.2]} 10. O-O {[%clk 0:03:08.4]} 10... a6 {[%clk 0:02:59.1]} 11. Bd3
{[%clk 0:03:00.7]} 11... dxe5 {[%clk 0:02:59.4]} 12. dxe5 {[%clk 0:03:01.3]}
12... Nb4 {[%clk 0:03:00.5]} 13. Be4 {[%clk 0:02:57.4]} 13... Bc6 {[%clk
0:03:00.8]} 14. Qe2 {[%clk 0:02:56.1]} 14... Bxe4 {[%clk 0:02:48.8]} 15. Qxe4
{[%clk 0:02:53.5]} 15... N4d5 {[%clk 0:02:49.5]} 16. Be3 {[%clk 0:02:48.1]}
16... Nxc3 {[%clk 0:02:27.1]} 17. bxc3 {[%clk 0:02:47.2]} 17... Qd5 {[%clk
0:02:28.4]} 18. Qg4 {[%clk 0:02:40.3]} 18... Qc4 {[%clk 0:02:24.1]} 19. Bd4
{[%clk 0:02:23]} 19... Nd5 {[%clk 0:02:19.9]} 20. Nd2 {[%clk 0:02:23.4]} 20...
Qd3 {[%clk 0:02:16.8]} 21. Rfd1 {[%clk 0:02:24.5]} 21... h5 {[%clk 0:02:16.9]}
22. Qe4 {[%clk 0:02:10.5]} 22... Qxe4 {[%clk 0:02:14.6]} 23. Nxe4 {[%clk
0:02:12.4]} 23... Be7 {[%clk 0:01:57.7]} 24. c4 {[%clk 0:02:09.1]} 24... Nf4
{[%clk 0:01:57.7]} 25. Rab1 {[%clk 0:02:09.1]} 25... O-O-O {[%clk 0:01:52.9]}
26. Kf1 {[%clk 0:02:10.5]} 26... Rd7 {[%clk 0:01:50.2]} 1/2-1/2

[Event "*** Titled Tuesday 3|2 Blitz"]
[Site "Chess.com"]
[Date "2015.06.02"]
[Round "5"]
[White "Philofive"]
[Black "HansCoolNiemann"]
[Result "1-0"]
[WhiteElo "2222"]
[BlackElo "1957"]
[TimeControl "180+2"]
[EndTime "11:55:29 PDT"]
[Termination "Philofive won by resignation"]

1. d4 {[%clk 0:02:44]} 1... Nf6 {[%clk 0:02:59.7]} 2. Bg5 {[%clk 0:02:44.1]}
2... Ne4 {[%clk 0:02:58.1]} 3. Bf4 {[%clk 0:02:45]} 3... c5 {[%clk 0:02:54.4]}
4. f3 {[%clk 0:02:46.1]} 4... Qa5+ {[%clk 0:02:42.7]} 5. c3 {[%clk 0:02:46.2]}
5... Nf6 {[%clk 0:02:43.3]} 6. d5 {[%clk 0:02:41.8]} 6... Qb6 {[%clk 0:02:30.4]}
7. e4 {[%clk 0:02:17.8]} 7... Qxb2 {[%clk 0:02:26.8]} 8. Nd2 {[%clk 0:02:18.8]}
8... Qxc3 {[%clk 0:02:01.5]} 9. Bc7 {[%clk 0:02:18.3]} 9... b6 {[%clk
0:01:53.8]} 10. Rc1 {[%clk 0:01:28.5]} 10... Qa5 {[%clk 0:01:50.8]} 11. Be5
{[%clk 0:01:29.2]} 11... d6 {[%clk 0:01:36.6]} 12. Bc3 {[%clk 0:01:29.3]} 12...
Qa3 {[%clk 0:01:04.3]} 13. Nc4 {[%clk 0:01:10.2]} 13... Qa4 {[%clk 0:00:59.3]}
14. Qxa4+ {[%clk 0:01:09]} 14... Bd7 {[%clk 0:00:53.5]} 1-0

[Event "*** Titled Tuesday 3|2 Blitz"]
[Site "Chess.com"]
[Date "2015.06.02"]
[Round "5"]
[White "GregShahade"]
[Black "ilmago"]
[Result "1-0"]
[WhiteElo "2331"]
[BlackElo "1869"]
[TimeControl "180+2"]
[EndTime "11:56:47 PDT"]
[Termination "GregShahade won by resignation"]

1. c4 {[%clk 0:02:43.6]} 1... Nf6 {[%clk 0:03:00.2]} 2. Nc3 {[%clk 0:02:44.5]}
2... g6 {[%clk 0:03:01.6]} 3. g3 {[%clk 0:02:44.6]} 3... Bg7 {[%clk 0:03:03]} 4.
Bg2 {[%clk 0:02:45.8]} 4... O-O {[%clk 0:03:04.3]} 5. Nf3 {[%clk 0:02:46.8]}
5... d6 {[%clk 0:03:04.3]} 6. O-O {[%clk 0:02:47.9]} 6... e5 {[%clk 0:03:05.1]}
7. d3 {[%clk 0:02:49]} 7... Nc6 {[%clk 0:03:04.8]} 8. Rb1 {[%clk 0:02:50.1]}
8... a5 {[%clk 0:03:03.6]} 9. a3 {[%clk 0:02:50.9]} 9... Be6 {[%clk 0:03:02.6]}
10. b4 {[%clk 0:02:47.5]} 10... axb4 {[%clk 0:03:02.8]} 11. axb4 {[%clk
0:02:48.4]} 11... Nd4 {[%clk 0:02:53.2]} 12. Nxd4 {[%clk 0:02:36.4]} 12... exd4
{[%clk 0:02:53.6]} 13. Nb5 {[%clk 0:02:37.2]} 13... d5 {[%clk 0:02:33.7]} 14.
Nxd4 {[%clk 0:02:34.1]} 14... dxc4 {[%clk 0:02:34.5]} 15. Nxe6 {[%clk
0:02:34.4]} 15... fxe6 {[%clk 0:02:34.3]} 16. dxc4 {[%clk 0:02:34.2]} 16... c6
{[%clk 0:02:27.6]} 17. Be3 {[%clk 0:02:25.8]} 17... Ra2 {[%clk 0:02:17.6]} 18.
Bf3 {[%clk 0:02:17.5]} 18... Qa8 {[%clk 0:02:14.1]} 19. Qd6 {[%clk 0:02:11.7]}
19... Re8 {[%clk 0:02:13.1]} 20. b5 {[%clk 0:02:06.3]} 20... Bf8 {[%clk
0:02:12.4]} 21. Qf4 {[%clk 0:02:00.4]} 21... Bg7 {[%clk 0:02:05.4]} 22. bxc6
{[%clk 0:01:58.6]} 22... bxc6 {[%clk 0:02:07.3]} 23. Qd6 {[%clk 0:01:52.8]}
23... Rc2 {[%clk 0:01:39]} 24. Bxc6 {[%clk 0:01:48.3]} 24... Qd8 {[%clk
0:01:35.3]} 25. Qf4 {[%clk 0:01:08.6]} 25... Rxe2 {[%clk 0:01:30.9]} 26. Bxe8
{[%clk 0:01:04.3]} 26... Nxe8 {[%clk 0:01:28.5]} 27. Rb8 {[%clk 0:01:02.1]}
27... Qd7 {[%clk 0:01:25.6]} 28. Qf3 {[%clk 0:00:58.3]} 28... Rc2 {[%clk
0:01:23.2]} 29. Rd1 {[%clk 0:00:58.9]} 1-0

[Event "*** Titled Tuesday 3|2 Blitz"]
[Site "Chess.com"]
[Date "2015.06.02"]
[Round "5"]
[White "MartinZumsande"]
[Black "esr44"]
[Result "1-0"]
[WhiteElo "2308"]
[BlackElo "2012"]
[TimeControl "180+2"]
[EndTime "11:56:50 PDT"]
[Termination "MartinZumsande won on time"]

1. e4 {[%clk 0:03:01.9]} 1... c6 {[%clk 0:02:59.2]} 2. d4 {[%clk 0:03:01.8]}
2... d5 {[%clk 0:03:00.7]} 3. exd5 {[%clk 0:03:00.6]} 3... cxd5 {[%clk
0:03:01.9]} 4. c4 {[%clk 0:03:02.1]} 4... Nf6 {[%clk 0:03:02.9]} 5. Nc3 {[%clk
0:03:03.4]} 5... Nc6 {[%clk 0:03:04.4]} 6. Bg5 {[%clk 0:03:02.4]} 6... e6 {[%clk
0:03:05.5]} 7. cxd5 {[%clk 0:02:59.8]} 7... exd5 {[%clk 0:03:01.9]} 8. Nf3
{[%clk 0:03:00.5]} 8... Be7 {[%clk 0:02:59.1]} 9. h3 {[%clk 0:03:00.2]} 9... O-O
{[%clk 0:02:58.7]} 10. Bd3 {[%clk 0:03:01.2]} 10... Qb6 {[%clk 0:02:31.5]} 11.
O-O {[%clk 0:02:41.9]} 11... Qxb2 {[%clk 0:02:16.9]} 12. Nb5 {[%clk 0:02:13.1]}
12... Be6 {[%clk 0:01:10.7]} 13. Nc7 {[%clk 0:01:56.3]} 13... Rac8 {[%clk
0:01:06.8]} 14. Nxe6 {[%clk 0:01:56.8]} 14... fxe6 {[%clk 0:01:07.9]} 15. Rb1
{[%clk 0:01:57.8]} 15... Qxa2 {[%clk 0:00:59.8]} 16. Rxb7 {[%clk 0:01:58.6]}
16... Bd6 {[%clk 0:00:24.7]} 17. Re1 {[%clk 0:01:50.5]} 17... Rce8 {[%clk
0:00:18.6]} 18. Bb5 {[%clk 0:01:38.8]} 18... Ne4 {[%clk 0:00:07.2]} 19. Be3
{[%clk 0:01:32.3]} 19... Rc8 {[%clk 0:00:06.3]} 20. Qa1 {[%clk 0:01:30.3]} 20...
Qxa1 {[%clk 0:00:07]} 21. Rxa1 {[%clk 0:01:32.2]} 21... h6 {[%clk 0:00:03.4]}
22. Ra6 {[%clk 0:01:30.5]} 22... Nb4 {[%clk 0:00:02.7]} 23. Raxa7 {[%clk
0:01:19.9]} 1-0